[Event "Torneo Interdepartamental 2020"]
[Site "Punta del Este"]
[Date "2020.11.01"]
[Round "3.12"]
[White "Gatti, Santiago"]
[Black "Romero Calderon, Juan"]
[Result "1/2-1/2"]
[ECO "D02"]
[WhiteElo "1691"]
[BlackElo "2099"]
[Annotator "ChessBase"]
[PlyCount "68"]
[EventDate "2020.10.31"]
[EventType "team-tourn"]
[EventCountry "URU"]
[SourceTitle "playchess.com"]
[Source "ChessBase"]
[SourceQuality "1"]
[TimeControl "3600+30"]

1. d4 d5 {[%emt 0:00:00]} 2. Nf3 {[%emt 0:00:00]} Nf6 {[%emt 0:00:10]} 3. Bf4 {[%emt 0:00:00]} c5 {[%emt 0:00:24]} 4. e3 {[%emt 0:00:00]} Nc6 {[%emt 0:00:55]} 5. c3 {[%emt 0:03:41]} Qb6 {[%emt 0:01:04]} 6. Qb3 {[%emt 0:01:10]} c4 {[%emt 0:01:00]} 7. Qxb6 {[%emt 0:05:33]} axb6 {[%emt 0:00:11]} 8. Nbd2 {[%emt 0:00:56]} Bf5 {[%emt 0:01:44]} 9. Be2 {[%emt 0:01:50]} e6 {[%emt 0:01:33]} 10. O-O {[%emt 0:00:31]} b5 {[%emt 0:01:01]} 11. a3 {[%emt 0:17:52]} Nd7 {[%emt 0:06:58]} 12. Rfc1 {[%emt 0:19:16]} Be7 {[%emt 0:05:27]} 13. Bd1 {[%emt 0:05:19]} Nb6 {[%emt 0:03:19]} 14. Bc2 {[%emt 0:03:54]} b4 {[%emt 0:02:16]} 15. Bc7 {[%emt 0:00:30]} Bxc2 {[%emt 0:00:30]} 16. Rxc2 {[%emt 0:03:05]} b3 {[%emt 0:04:59]} 17. Rcc1 Na4 {[%emt 0:03:41]} 18. Rcb1 {[%emt 0:03:17]} Kd7 19. Bf4 {[%emt 0:00:33]} f6 {[%emt 0:04:56]} 20. e4 {[%emt 0:01:14]} Bd6 {[%emt 0:03:48]} 21. Bxd6 {[%emt 0:00:51]} Kxd6 {[%emt 0:00:03]} 22. Ne1 {[%emt 0:00:47]} e5 {[%emt 0:01:00]} 23. dxe5+ {[%emt 0:00:27]} fxe5 {[%emt 0:01:47]} 24. exd5 Kxd5 {[%emt 0:00:24]} 25. Ndf3 {[%emt 0:01:04]} Kc5 {[%emt 0:01:34]} 26. Ng5 {[%emt 0:00:13]} Rae8 {[%emt 0:02:21]} 27. Ne4+ {[%emt 0:00:34]} Kd5 {[%emt 0:00:36]} 28. f3 {[%emt 0:00:30]} Ke6 {[%emt 0:00:30]} 29. Rd1 {[%emt 0:00:18]} Rd8 {[%emt 0:02:00]} 30. Rxd8 {[%emt 0:01:02]} Rxd8 {[%emt 0:00:19]} 31. Rb1 {[%emt 0:00:21]} h6 {[%emt 0:01:02]} 32. Kf2 {[%emt 0:00:25]} Rd5 {[%emt 0:01:06]} 33. g4 {[%emt 0:00:28]} g5 {[%emt 0:00:35]} 34. Ng2 {[%emt 0:00:07]} Nc5 1/2-1/2

[Event "Torneo Interdepartamental 2020"]
[Site "Punta del Este"]
[Date "2020.11.01"]
[Round "4.8"]
[White "Durante, Aurelio"]
[Black "Dominguez Orono, Walter"]
[Result "1-0"]
[ECO "B50"]
[WhiteElo "1937"]
[BlackElo "1668"]
[Annotator "RC"]
[PlyCount "81"]
[EventDate "2020.10.31"]
[EventType "team-tourn"]
[EventCountry "URU"]
[TimeControl "3600+30"]

1. e4 {[%emt 0:00:00]} c5 {[%emt 0:00:00]} 2. Nf3 {[%emt 0:00:00]} d6 {[%emt 0:00:14]} 3. c3 {[%emt 0:01:52]} Nf6 {[%emt 0:00:34]} 4. Be2 {[%emt 0:00:47]} g6 {[%emt 0:00:24]} 5. O-O {[%emt 0:00:26]} Bg7 {[%emt 0:00:10]} 6. Re1 {[%emt 0:00:09]} O-O {[%emt 0:00:08]} 7. Bf1 {[%emt 0:00:11]} Bg4 {[%emt 0:03:24]} 8. h3 {[%emt 0:00:35]} Bxf3 {[%emt 0:02:33]} 9. Qxf3 {[%emt 0:00:05]} Nc6 {[%emt 0:00:13]} 10. d3 {[%emt 0:03:03]} Rc8 {[%emt 0:03:04]} 11. Na3 {[%emt 0:03:50]} a6 {[%emt 0:03:17]} 12. Nc2 {[%emt 0:04:28]} Nd7 {[%emt 0:02:15]} 13. Rb1 {[%emt 0:00:31]} b5 {[%emt 0:00:57]} 14. Qd1 {[%emt 0:04:06]} Qb6 {[%emt 0:03:51]} 15. Ne3 {[%emt 0:03:24]} e6 {[%emt 0:08:19]} 16. Kh1 {[%emt 0:08:35]} Rfd8 {[%emt 0:06:37]} 17. f4 {[%emt 0:02:40]} Nf6 {[%emt 0:02:51]} 18. g4 {[%emt 0:01:57]} d5 {[%emt 0:02:40]} 19. e5 {[%emt 0:02:01]} Ne8 {[%emt 0:00:35]} 20. g5 {[%emt 0:04:18]} d4 {[%emt 0:02:24]} 21. Ng4 {[%emt 0:00:28]} dxc3 {[%emt 0:01:45]} 22. bxc3 {[%emt 0:00:02]} Qb7 {[%emt 0:01:16]} 23. Qf3 {[%emt 0:00:50]} Qd7 {[%emt 0:01:32]} 24. Be3 {[%emt 0:03:35]} Qd5 {[%emt 0:02:47]} 25. Qxd5 {[%emt 0:02:07]} Rxd5 {[%emt 0:00:10]} 26. c4 {[%emt 0:00:35]} bxc4 {[%emt 0:02:52]} 27. dxc4 {[%emt 0:00:11]} Rd7 {[%emt 0:01:09]} 28. Rb6 {[%emt 0:05:39]} Nb4 {[%emt 0:01:25]} 29. a3 {[%emt 0:00:41]} Nc2 {[%emt 0:00:36]} 30. Rc1 {[%emt 0:03:01]} Nxe3 {[%emt 0:01:19]} 31. Nxe3 {[%emt 0:00:02]} Nc7 {[%emt 0:01:07]} 32. Rc6 {[%emt 0:02:37]} Bf8 {[%emt 0:00:32]} 33. Kg2 {[%emt 0:02:57]} Rd2+ {[%emt 0:02:58]} 34. Kf3 {[%emt 0:00:11]} Ra2 {[%emt 0:00:55]} 35. Rc3 {[%emt 0:00:40]} Be7 {[%emt 0:02:26]} 36. Rd3 {[%emt 0:01:31]} Rd8 {[%emt 0:01:36]} 37. Rxc7 {[%emt 0:00:49]} Rxd3 {[%emt 0:00:44]} 38. Bxd3 {[%emt 0:00:03]} Rxa3 {[%emt 0:00:28]} 39. Ke4 {[%emt 0:00:38]} Bf8 {[%emt 0:01:14]} 40. Ng4 {[%emt 0:00:13]} f5+ 41. gxf6 1-0

[Event "Torneo Interdepartamental 2020"]
[Site "Punta del Este"]
[Date "2020.11.01"]
[Round "4.10"]
[White "Alzugaray, Ernesto"]
[Black "Aramburu, Gabriel"]
[Result "0-1"]
[ECO "A45"]
[WhiteElo "1620"]
[BlackElo "1813"]
[Annotator "NA RC"]
[PlyCount "43"]
[EventDate "2020.10.31"]
[EventType "team-tourn"]
[EventCountry "URU"]
[SourceTitle "playchess.com"]
[Source "ChessBase"]
[SourceQuality "1"]
[TimeControl "3600+30"]

{[%evp 8,43,16,6,0,2,6,6,24,3,38,40,45,5,49,47,53,50,42,0,19,-35,-31,-97,-53,-87,-75,-98,-97,-102,-94,-95,-80,-78,-36,-160,-135,-1306]} 1. d4 {[%emt 0:00:00]} Nf6 {[%emt 0:00:00]} 2. Bf4 {[%emt 0:00:00]} d6 {[%emt 0:00:07]} 3. h3 {[%emt 0:00:17]} Nbd7 {[%emt 0:01:09]} 4. Nf3 {[%emt 0:00:58]} g6 {[%emt 0:00:41]} 5. e3 {[%emt 0:00:31]} Bg7 {[%emt 0:01:18]} 6. Be2 {[%emt 0:00:12]} O-O {[%emt 0:00:22]} 7. O-O {[%emt 0:00:07]} c6 {[%emt 0:02:12]} 8. c4 {[%emt 0:00:54]} Re8 {[%emt 0:06:08]} 9. Nc3 {[%emt 0:00:50]} e5 {[%emt 0:02:23]} 10. Bh2 {[%emt 0:00:24]} Qe7 {[%emt 0:01:55]} 11. Re1 {[%emt 0:03:30] [#] E61: King's Indian: Early deviations for White, including Smyslov System.} b6 $146 {[%emt 0:01:34]} ({Predecessor:} 11... Nh5 12. Qc2 f5 13. Rad1 h6 14. d5 c5 15. Nd2 Nhf6 16. Bd3 e4 17. Bf1 a6 18. a4 Ne5 {0-1 (67) Stajkovski,S (1428)-Carvallo,H (2069) Europe Chess INT 2020}) 12. a4 {[%emt 0:01:39]} a5 {[%emt 0:00:51]} 13. d5 {[%emt 0:05:32]} cxd5 {[%emt 0:04:21]} 14. Nxd5 {[%emt 0:01:56]} Nxd5 {[%emt 0:00:43]} 15. Qxd5 {[%emt 0:01:32]} ({Better is} 15. cxd5 $15 Nc5 16. Bg3) 15... Ra7 {[%emt 0:02:14]} 16. Qd1 {[%emt 0:10:34]} Nc5 {[%emt 0:03:01]} 17. Qc2 {[%emt 0:04:15]} Bf5 {[%emt 0:01:31]} 18. Qc3 {[%emt 0:02:57]} Be4 {[%emt 0:03:16]} 19. Nd2 {[%emt 0:05:12]} Bc6 {[%emt 0:00:25]} 20. Qc2 {[%emt 0:02:00]} Qd7 {[%emt 0:03:01]} 21. e4 {[%emt 0:03:58]} (21. b3 $15) 21... Bxa4 {[%emt 0:01:23]} 22. Ra2 $19 {[%mdl 8192]} (22. b3 $17 Bc6 23. Ra2) 0-1

[Event "Torneo Interdepartamental 2020"]
[Site "Punta del Este"]
[Date "2020.11.01"]
[Round "4.11"]
[White "Barla, Rafael"]
[Black "Agrasot, Antonio"]
[Result "1-0"]
[ECO "D02"]
[WhiteElo "1836"]
[BlackElo "1560"]
[Annotator "NA RC"]
[PlyCount "135"]
[EventDate "2020.10.31"]
[EventType "team-tourn"]
[EventCountry "URU"]
[TimeControl "3600+30"]

1. d4 {[%emt 0:00:22]} d5 2. Nf3 e6 {[%emt 0:00:42]} 3. Bf4 {[%emt 0:00:46]} Be7 {[%emt 0:01:19]} 4. e3 {[%emt 0:00:17]} Nf6 {[%emt 0:00:29]} 5. Bd3 {[%emt 0:00:38]} c5 {[%emt 0:01:34]} 6. c3 {[%emt 0:00:24]} Qb6 {[%emt 0:01:23]} 7. b3 {[%emt 0:05:22]} Nbd7 {[%emt 0:02:52]} 8. Nbd2 {[%emt 0:00:29]} h6 {[%emt 0:02:34]} 9. h3 {[%emt 0:01:00]} Bd6 {[%emt 0:00:31]} 10. Ne5 {[%emt 0:03:10]} Qc7 {[%emt 0:01:51]} 11. Ndf3 {[%emt 0:02:42]} Ne4 {[%emt 0:01:24]} 12. Rc1 {[%emt 0:02:24]} O-O {[%emt 0:03:18]} 13. Qc2 {[%emt 0:04:00]} Nxe5 14. dxe5 Be7 {[%emt 0:09:01]} 15. Bxe4 {[%emt 0:01:08]} dxe4 {[%emt 0:01:10]} 16. Qxe4 {[%emt 0:00:14]} Rb8 {[%emt 0:00:22]} 17. O-O {[%emt 0:02:21]} b6 {[%emt 0:00:07]} 18. Qc2 {[%emt 0:01:43]} Bb7 {[%emt 0:00:14]} 19. Nd2 {[%emt 0:05:37]} Qc6 {[%emt 0:01:34]} 20. f3 {[%emt 0:01:11]} b5 {[%emt 0:00:55]} 21. Rfd1 {[%emt 0:03:47]} Rbd8 {[%emt 0:00:13]} 22. Ne4 {[%emt 0:00:53]} f5 {[%emt 0:01:10]} 23. Nd6 {[%emt 0:08:48]} Bxd6 {[%emt 0:02:14]} 24. Rxd6 {[%emt 0:01:10]} Rxd6 {[%emt 0:00:10]} 25. exd6 {[%emt 0:00:10]} Qd7 {[%emt 0:02:33]} 26. Rd1 {[%emt 0:01:27]} Rf7 {[%emt 0:01:34]} 27. Be5 {[%emt 0:00:49]} Qe8 {[%emt 0:00:48]} 28. c4 {[%emt 0:01:48]} b4 {[%emt 0:00:30]} 29. Qf2 {[%emt 0:01:25]} Qc6 {[%emt 0:02:00]} 30. Qh4 {[%emt 0:01:11]} Qd7 {[%emt 0:00:55]} 31. Kf2 {[%emt 0:01:12]} Bc6 {[%emt 0:00:47]} 32. Qf4 {[%emt 0:02:43]} Qd8 {[%emt 0:03:41]} 33. Bb2 {[%emt 0:00:36]} Bd7 {[%emt 0:02:10]} 34. h4 {[%emt 0:00:20]} a5 {[%emt 0:03:17]} 35. h5 {[%emt 0:00:11]} Qg5 {[%emt 0:01:12]} 36. Qxg5 {[%emt 0:04:36]} hxg5 {[%emt 0:00:09]} 37. a3 {[%emt 0:00:07]} Bc6 {[%emt 0:02:48]} 38. axb4 {[%emt 0:00:17]} axb4 {[%emt 0:01:25]} 39. Ra1 {[%emt 0:00:11]} Rb7 {[%emt 0:02:23]} 40. Ra5 {[%emt 0:00:54]} Bd7 {[%emt 0:01:00]} 41. Rxc5 {[%emt 0:00:57]} Ra7 {[%emt 0:00:19]} 42. Be5 {[%emt 0:01:05]} Kh7 {[%emt 0:01:30]} 43. Rc7 {[%emt 0:00:18]} Rxc7 44. dxc7 {[%emt 0:00:06]} Bc8 {[%emt 0:00:31]} 45. Bd6 {[%emt 0:00:32]} Kh6 {[%emt 0:00:36]} 46. g4 {[%emt 0:00:17]} g6 {[%emt 0:00:38]} 47. hxg6 {[%emt 0:00:11]} Kxg6 {[%emt 0:00:06]} 48. Bxb4 {[%emt 0:00:14]} Kf7 {[%emt 0:00:05]} 49. c5 {[%emt 0:00:54]} fxg4 {[%emt 0:01:01]} 50. fxg4 {[%emt 0:00:05]} e5 {[%emt 0:00:23]} 51. Kg3 {[%emt 0:02:20]} e4 {[%emt 0:00:20]} 52. c6 {[%emt 0:00:36]} Ke6 {[%emt 0:00:52]} 53. Bc5 {[%emt 0:03:00]} Kd5 {[%emt 0:00:17]} 54. Be7 {[%emt 0:01:02]} Kxc6 {[%emt 0:00:30]} 55. Bxg5 {[%emt 0:01:07]} Kxc7 {[%emt 0:00:08]} 56. Bf4+ {[%emt 0:00:19]} Kd7 {[%emt 0:00:54]} 57. g5 {[%emt 0:00:48]} Ke6 {[%emt 0:00:35]} 58. Kh4 {[%emt 0:01:39]} Kf7 {[%emt 0:00:38]} 59. Kh5 {[%emt 0:00:12]} Kg8 {[%emt 0:02:08]} 60. Kg6 {[%emt 0:00:21]} Be6 {[%emt 0:00:44]} 61. b4 {[%emt 0:00:06]} Bc4 {[%emt 0:00:46]} 62. Be5 {[%emt 0:00:23]} Bb5 {[%emt 0:04:35]} 63. Kf6 {[%emt 0:00:13]} Bc4 {[%emt 0:00:54]} 64. g6 {[%emt 0:00:12]} Bd5 {[%emt 0:02:52]} 65. b5 {[%emt 0:00:32]} Bb7 {[%emt 0:01:53]} 66. g7 {[%emt 0:00:15]} Bd5 {[%emt 0:00:24]} 67. b6 {[%emt 0:00:07]} Bb7 {[%emt 0:00:34]} 68. Ke7 {[%emt 0:00:10]} 1-0

[Event "Torneo Interdepartamental 2020"]
[Site "Punta del Este"]
[Date "2020.11.01"]
[Round "4.12"]
[White "Garcia Meoni, Fernando"]
[Black "Ojeda, Cristhian"]
[Result "0-1"]
[ECO "C50"]
[WhiteElo "1395"]
[BlackElo "1602"]
[Annotator "NA RC"]
[PlyCount "43"]
[EventDate "2020.10.31"]
[EventType "team-tourn"]
[EventCountry "URU"]
[SourceTitle "playchess.com"]
[Source "ChessBase"]
[SourceQuality "1"]
[TimeControl "3600+30"]

1. e4 e5 2. Nf3 Nc6 3. Bc4 Be7 4. Ng5 Bxg5 5. Nc3 Nf6 6. Qf3 O-O 7. O-O d6 8. Qd1 Ne7 9. Re1 c6 10. b3 d5 11. exd5 Nfxd5 12. Bb2 Bg4 13. f3 Bh5 14. Rxe5 Bf4 15. Re1 Qb6+ 16. Kh1 Qf2 17. Re2 Qh4 18. Qg1 Nxc3 19. Bxc3 Rae8 20. Rae1 Bxh2 21. Qxh2 Qxe1+ 22. Rxe1 0-1

[Event "Torneo Interdepartamental 2020"]
[Site "Punta del Este"]
[Date "2020.11.02"]
[Round "5.2"]
[White "Bustelo, Tabare"]
[Black "Froz, Daniel"]
[Result "1-0"]
[ECO "D00"]
[WhiteElo "2053"]
[BlackElo "1670"]
[Annotator "ChessBase"]
[PlyCount "59"]
[EventDate "2020.10.31"]
[EventType "team-tourn"]
[EventCountry "URU"]
[SourceTitle "playchess.com"]
[Source "ChessBase"]
[SourceQuality "1"]
[TimeControl "3600+30"]

1. d4 {[%emt 0:01:07]} d5 {[%emt 0:00:08]} 2. Nc3 {[%emt 0:00:12]} c6 {[%emt 0:00:25]} 3. Nf3 {[%emt 0:01:10]} Bf5 {[%emt 0:00:00]} 4. Nh4 {[%emt 0:00:28]} Bg6 {[%emt 0:01:15]} 5. Nxg6 {[%emt 0:00:17]} hxg6 {[%emt 0:00:15]} 6. e4 {[%emt 0:03:01]} e6 {[%emt 0:07:30]} 7. exd5 {[%emt 0:02:28]} exd5 {[%emt 0:00:35]} 8. Bf4 {[%emt 0:02:01]} Nf6 {[%emt 0:07:42]} 9. Qf3 {[%emt 0:05:02]} Bb4 {[%emt 0:05:37]} 10. O-O-O {[%emt 0:01:58]} O-O {[%emt 0:13:54]} 11. Ne2 {[%emt 0:02:56]} Nbd7 {[%emt 0:01:25]} 12. Ng3 {[%emt 0:05:51]} Re8 {[%emt 0:01:29]} 13. Bd3 {[%emt 0:01:01]} Nf8 {[%emt 0:04:27]} 14. h4 {[%emt 0:00:55]} Ne6 {[%emt 0:05:04]} 15. Be3 {[%emt 0:02:06]} c5 {[%emt 0:08:08]} 16. dxc5 {[%emt 0:01:08]} Bxc5 {[%emt 0:02:10]} 17. Bxc5 {[%emt 0:02:29]} Nxc5 {[%emt 0:00:04]} 18. h5 {[%emt 0:00:26]} Nxd3+ {[%emt 0:02:05]} 19. Rxd3 {[%emt 0:00:14]} Qa5 {[%emt 0:00:56]} 20. Kb1 {[%emt 0:02:54]} Ne4 {[%emt 0:03:36]} 21. Rhd1 {[%emt 0:02:20]} Rad8 {[%emt 0:01:33]} 22. a3 {[%emt 0:02:24]} Nxg3 {[%emt 0:00:58]} 23. hxg6 {[%emt 0:00:51]} fxg6 {[%emt 0:01:08]} 24. Qxg3 {[%emt 0:00:05]} Re1 {[%emt 0:00:59]} 25. Qxg6 {[%emt 0:04:35]} Rxd1+ {[%emt 0:00:32]} 26. Rxd1 {[%emt 0:00:08]} Qc5 {[%emt 0:00:26]} 27. Qe6+ {[%emt 0:00:33]} Kf8 {[%emt 0:00:24]} 28. Rd3 {[%emt 0:00:10]} Qe7 {[%emt 0:00:44]} 29. Rf3+ {[%emt 0:00:44]} Ke8 {[%emt 0:00:11]} 30. Qg6+ {[%emt 0:00:36]} 1-0

[Event "Torneo Interdepartamental 2020"]
[Site "Punta del Este"]
[Date "2020.11.02"]
[Round "5.3"]
[White "Chinelli, Gabriel"]
[Black "Carbone, Diego"]
[Result "0-1"]
[ECO "A45"]
[WhiteElo "1697"]
[BlackElo "2219"]
[Annotator "ChessBase"]
[PlyCount "108"]
[EventDate "2020.10.31"]
[EventType "team-tourn"]
[EventCountry "URU"]
[SourceTitle "playchess.com"]
[Source "ChessBase"]
[SourceQuality "1"]
[TimeControl "3600+30"]

1. d4 {[%emt 0:01:18]} Nf6 {[%emt 0:00:00]} 2. Bg5 {[%emt 0:00:35]} Ne4 {[%emt 0:00:47]} 3. Bh4 {[%emt 0:00:02]} d5 {[%emt 0:02:29]} 4. Nd2 {[%emt 0:05:11]} g5 {[%emt 0:03:52]} 5. Nxe4 {[%emt 0:04:01]} gxh4 {[%emt 0:00:07]} 6. Nc5 {[%emt 0:01:37]} e5 {[%emt 0:01:14]} 7. e3 {[%emt 0:02:49]} Bd6 {[%emt 0:11:59]} 8. Qh5 {[%emt 0:03:07]} Qe7 {[%emt 0:01:02]} 9. O-O-O {[%emt 0:02:20]} Bxc5 {[%emt 0:04:15]} 10. dxc5 {[%emt 0:00:51]} c6 {[%emt 0:00:19]} 11. Nf3 {[%emt 0:02:08]} Nd7 {[%emt 0:00:26]} 12. e4 {[%emt 0:10:36]} Nf6 {[%emt 0:08:37]} 13. Qxe5 {[%emt 0:02:28]} Qxe5 {[%emt 0:00:41]} 14. Nxe5 {[%emt 0:00:03]} Nxe4 {[%emt 0:00:12]} 15. Nd3 {[%emt 0:00:17]} b6 {[%emt 0:04:38]} 16. cxb6 {[%emt 0:02:47]} axb6 {[%emt 0:00:02]} 17. Re1 {[%emt 0:02:31]} O-O {[%emt 0:05:13]} 18. f3 {[%emt 0:02:15]} Nd6 {[%emt 0:00:27]} 19. a3 {[%emt 0:05:12]} c5 {[%emt 0:09:43]} 20. Nf4 {[%emt 0:01:30]} Bb7 {[%emt 0:03:51]} 21. Re7 {[%emt 0:01:27]} Rfe8 {[%emt 0:00:28]} 22. Rd7 {[%emt 0:01:16]} Rad8 {[%emt 0:01:37]} 23. Rxd8 {[%emt 0:01:29]} Rxd8 {[%emt 0:00:02]} 24. c3 {[%emt 0:04:10]} Nf5 {[%emt 0:02:40]} 25. Bd3 {[%emt 0:02:25]} Ne3 {[%emt 0:00:02]} 26. Kd2 {[%emt 0:00:49]} d4 {[%emt 0:01:27]} 27. Re1 {[%emt 0:02:58]} h6 {[%emt 0:03:49]} 28. cxd4 {[%emt 0:00:17]} cxd4 {[%emt 0:00:01]} 29. Re2 {[%emt 0:02:26]} Kf8 {[%emt 0:00:36]} 30. Be4 {[%emt 0:00:31]} Bxe4 {[%emt 0:02:12]} 31. fxe4 {[%emt 0:00:11]} Nf1+ {[%emt 0:00:23]} 32. Kd3 {[%emt 0:00:25]} Nxh2 {[%emt 0:00:01]} 33. Nd5 {[%emt 0:00:11]} Ng4 {[%emt 0:02:28]} 34. Nxb6 {[%emt 0:00:54]} Ne5+ {[%emt 0:00:17]} 35. Kd2 {[%emt 0:01:19]} d3 {[%emt 0:00:49]} 36. Rf2 {[%emt 0:00:47]} Rb8 {[%emt 0:00:30]} 37. Na4 {[%emt 0:00:06]} Rb3 {[%emt 0:00:34]} 38. Kc1 {[%emt 0:00:57]} Nc4 {[%emt 0:00:30]} 39. Nc5 {[%emt 0:01:15]} d2+ {[%emt 0:00:22]} 40. Rxd2 {[%emt 0:03:10]} Nxd2 {[%emt 0:00:06]} 41. Nxb3 {[%emt 0:00:44]} Nxb3+ {[%emt 0:00:01]} 42. Kc2 {[%emt 0:00:42]} Nc5 {[%emt 0:00:51]} 43. b4 {[%emt 0:00:22]} Nxe4 {[%emt 0:00:06]} 44. Kd3 {[%emt 0:00:24]} Nf6 {[%emt 0:01:29]} 45. Kd4 {[%emt 0:00:32]} Ke7 {[%emt 0:00:02]} 46. Ke5 {[%emt 0:00:36]} Ng4+ {[%emt 0:00:31]} 47. Kf4 {[%emt 0:00:28]} Nf2 {[%emt 0:01:01]} 48. Kf3 {[%emt 0:00:57]} h3 {[%emt 0:00:37]} 49. gxh3 {[%emt 0:00:03]} Nxh3 {[%emt 0:00:06]} 50. Kg4 {[%emt 0:00:08]} Nf2+ {[%emt 0:00:17]} 51. Kf5 {[%emt 0:00:22]} Kd7 {[%emt 0:00:44]} 52. a4 {[%emt 0:00:12]} Nd3 {[%emt 0:00:44]} 53. b5 {[%emt 0:00:08]} Nb2 {[%emt 0:00:01]} 54. a5 {[%emt 0:00:32]} Nc4 {[%emt 0:00:04]} 0-1

[Event "Torneo Interdepartamental 2020"]
[Site "Punta del Este"]
[Date "2020.11.02"]
[Round "5.7"]
[White "Bentancurt, Juan"]
[Black "Genta, Alejandro"]
[Result "0-1"]
[ECO "B20"]
[WhiteElo "1720"]
[BlackElo "2003"]
[Annotator "ChessBase"]
[PlyCount "76"]
[EventDate "2020.10.31"]
[EventType "team-tourn"]
[EventCountry "URU"]
[SourceTitle "playchess.com"]
[Source "ChessBase"]
[SourceQuality "1"]
[TimeControl "3600+30"]

1. e4 {[%emt 0:00:00]} c5 {[%emt 0:00:00]} 2. b4 {[%emt 0:00:00]} cxb4 {[%emt 0:00:38]} 3. Bb2 {[%emt 0:00:02]} e6 {[%emt 0:00:32]} 4. Nf3 {[%emt 0:01:33]} Nf6 {[%emt 0:01:24]} 5. d3 {[%emt 0:02:13]} Nc6 {[%emt 0:01:26]} 6. Nbd2 {[%emt 0:01:11]} d5 {[%emt 0:06:48]} 7. e5 {[%emt 0:04:03]} Nd7 {[%emt 0:00:08]} 8. d4 {[%emt 0:00:18]} Be7 {[%emt 0:00:46]} 9. Bd3 {[%emt 0:01:29]} Nb6 {[%emt 0:00:31]} 10. O-O {[%emt 0:04:18]} O-O {[%emt 0:06:05]} 11. Rc1 {[%emt 0:06:23]} Bd7 {[%emt 0:09:10]} 12. c4 {[%emt 0:03:38]} bxc3 {[%emt 0:02:56]} 13. Bxc3 {[%emt 0:00:54]} Rc8 {[%emt 0:07:28]} 14. Nb3 {[%emt 0:02:50]} Na4 {[%emt 0:05:45]} 15. Bd2 {[%emt 0:00:42]} g6 {[%emt 0:08:35]} 16. Bb1 {[%emt 0:01:59]} Nb2 {[%emt 0:05:13]} 17. Qe2 {[%emt 0:00:49]} Nc4 {[%emt 0:00:14]} 18. Bh6 {[%emt 0:01:01]} Re8 {[%emt 0:00:03]} 19. g3 {[%emt 0:02:07]} Nb4 {[%emt 0:03:21]} 20. h4 {[%emt 0:02:52]} Bb5 {[%emt 0:01:06]} 21. Ng5 {[%emt 0:05:04]} Bf8 {[%emt 0:02:02]} 22. Qf3 {[%emt 0:01:17]} Qe7 {[%emt 0:00:50]} 23. Bxf8 {[%emt 0:03:17]} Rxf8 {[%emt 0:00:01]} 24. Kg2 {[%emt 0:06:24]} Na3 {[%emt 0:01:27]} 25. Rh1 {[%emt 0:03:59]} Rxc1 {[%emt 0:00:44]} 26. Rxc1 {[%emt 0:00:52]} h6 {[%emt 0:00:18]} 27. Nh3 {[%emt 0:03:31]} Nxb1 {[%emt 0:00:06]} 28. Rxb1 {[%emt 0:00:22]} Bd3 {[%emt 0:00:00]} 29. Re1 {[%emt 0:00:27]} Nc2 {[%emt 0:01:02]} 30. Kh2 {[%emt 0:03:15]} Nxe1 {[%emt 0:00:24]} 31. Qe3 {[%emt 0:00:03]} Bf5 {[%emt 0:04:04]} 32. Qxe1 {[%emt 0:00:09]} Bxh3 {[%emt 0:00:04]} 33. Kxh3 {[%emt 0:00:11]} Rc8 {[%emt 0:00:12]} 34. Qe3 {[%emt 0:00:26]} Kg7 {[%emt 0:00:11]} 35. Nc5 {[%emt 0:00:37]} b6 {[%emt 0:00:16]} 36. Nd3 {[%emt 0:00:45]} Qa3 {[%emt 0:00:59]} 37. Qd2 {[%emt 0:00:19]} Qc3 {[%emt 0:00:03]} 38. Qe3 {[%emt 0:01:23]} Rc4 {[%emt 0:01:00]} 0-1

[Event "Torneo Interdepartamental 2020"]
[Site "Punta del Este"]
[Date "2020.11.02"]
[Round "5.8"]
[White "Pinero, Ismael"]
[Black "Aramburu, Gabriel"]
[Result "1/2-1/2"]
[ECO "C70"]
[WhiteElo "1882"]
[BlackElo "1813"]
[Annotator "NA"]
[PlyCount "80"]
[EventDate "2020.10.31"]
[EventType "team-tourn"]
[EventCountry "URU"]
[SourceTitle "playchess.com"]
[Source "ChessBase"]
[SourceQuality "1"]
[TimeControl "3600+30"]

1. e4 {[%emt 0:00:00]} e5 {[%emt 0:00:37]} 2. Nf3 {[%emt 0:00:00]} Nc6 {[%emt 0:00:07]} 3. Bb5 {[%emt 0:00:00]} a6 {[%emt 0:00:14]} 4. Ba4 {[%emt 0:00:00]} b5 {[%emt 0:00:13]} 5. Bb3 {[%emt 0:00:00]} Bc5 {[%emt 0:00:17]} 6. c3 {[%emt 0:00:11]} d6 {[%emt 0:01:18]} 7. a4 {[%emt 0:04:35]} Rb8 {[%emt 0:06:15]} 8. Bd5 {[%emt 0:09:55]} Nce7 {[%emt 0:02:30]} 9. d4 {[%emt 0:02:28]} exd4 {[%emt 0:02:46]} 10. Nxd4 {[%emt 0:00:06]} Nf6 {[%emt 0:02:24]} 11. b4 {[%emt 0:04:08]} Bxd4 {[%emt 0:05:21]} 12. Qxd4 {[%emt 0:00:15]} Nexd5 {[%emt 0:01:16]} 13. exd5 {[%emt 0:00:04]} O-O {[%emt 0:02:17]} 14. O-O {[%emt 0:00:31]} h6 {[%emt 0:01:20]} 15. Rd1 {[%emt 0:03:29]} Re8 {[%emt 0:02:50]} 16. axb5 {[%emt 0:07:30]} axb5 {[%emt 0:00:38]} 17. Ra5 {[%emt 0:00:23]} Re5 {[%emt 0:02:41]} 18. Qh4 {[%emt 0:02:58]} Qe8 {[%emt 0:01:52]} 19. f3 {[%emt 0:01:31]} Nxd5 {[%emt 0:03:04]} 20. f4 {[%emt 0:05:02]} Re2 {[%emt 0:10:30]} 21. Kf1 {[%emt 0:10:21]} Qe4 {[%emt 0:08:23]} 22. Qg3 {[%emt 0:01:02]} Ne3+ {[%emt 0:03:29]} 23. Bxe3 {[%emt 0:00:24]} Rxe3 {[%emt 0:00:10]} 24. Qf2 {[%emt 0:02:47]} Bb7 {[%emt 0:01:02]} 25. Ra2 {[%emt 0:05:25]} Re8 {[%emt 0:02:27]} 26. Rad2 {[%emt 0:02:42]} Re6 {[%emt 0:03:27]} 27. Rd4 {[%emt 0:01:20]} Qf5 {[%emt 0:01:02]} 28. R4d2 {[%emt 0:01:34]} R3e4 {[%emt 0:00:25]} 29. g3 {[%emt 0:00:44]} h5 {[%emt 0:01:30]} 30. Na3 {[%emt 0:00:27]} h4 {[%emt 0:00:26]} 31. Nc2 {[%emt 0:00:46]} hxg3 {[%emt 0:00:27]} 32. hxg3 {[%emt 0:02:02]} Rh6 {[%emt 0:01:03]} 33. Ne3 {[%emt 0:01:26]} Rxe3 {[%emt 0:01:45]} 34. Qxe3 {[%emt 0:00:10]} Rh1+ {[%emt 0:00:15]} 35. Kf2 {[%emt 0:00:46]} Qh3 {[%emt 0:01:35]} 36. Rxh1 {[%emt 0:00:30]} Qxh1 {[%emt 0:00:06]} 37. Re2 {[%emt 0:01:23]} Qg2+ {[%emt 0:00:30]} 38. Ke1 {[%emt 0:00:04]} Qh1+ {[%emt 0:00:19]} 39. Kd2 {[%emt 0:00:07]} Qd5+ {[%emt 0:00:12]} 40. Qd3 Qh1 1/2-1/2